fUSD/lending_fUSD_20250207
["ID","MTS","AMOUNT","RATE_DAILY","PERIOD"]
[352133124,1738956693919,-1743.62,0.00017806,2]
[352133125,1738956693928,-552.47617726,0.00017806,2]
[352133126,1738956693938,-720.06,0.00017806,2]
[352133127,1738956693948,-5046.81,0.00017806,2]
[352133128,1738956693958,-500.0,0.00017806,2]
[352133129,1738956693967,-500.0,0.00017806,2]
[352133130,1738956693977,-500.0,0.00017806,2]
[352133131,1738956693986,-1994.07,0.00017806,2]
[352133132,1738956693996,-1138.25,0.00017806,2]
[352133133,1738956694006,-500.0,0.00017806,2]
[352133134,1738956694015,-3516.18,0.00017806,2]
[352133135,1738956694024,-500.0,0.00017806,2]
[352133136,1738956694034,-500.0,0.00017806,2]
[352133137,1738956694044,-500.0,0.00017806,2]
[352133138,1738956694054,-1024.51,0.00017806,2]
[352133139,1738956694064,-2173.49,0.00017806,2]
[352133140,1738956694074,-612.99,0.00017806,2]
[352133141,1738956694084,-1229.36,0.00017806,2]
[352133142,1738956694094,-2227.07,0.00017806,2]
[352133143,1738956694104,-2301.73,0.00017806,2]
[352133144,1738956694113,-1183.89,0.00017806,2]
[352133145,1738956694123,-518.71,0.00017806,2]
[352133146,1738956694133,-2133.71,0.00017806,2]
[352133147,1738956694143,-500.0,0.00017806,2]
[352133148,1738956694152,-2304.96,0.00017806,2]
[352133149,1738956694162,-4101.49,0.00017806,2]
[352133150,1738956694172,-629.73,0.00017806,2]
[352133151,1738956694182,-10904.08,0.00017806,2]
[352133152,1738956694192,-1990.52,0.00017806,2]
[352133153,1738956694202,-1994.74,0.00017806,2]
[352133154,1738956694211,-500.0,0.00017806,2]
[352133155,1738956694220,-2018.74,0.00017806,2]
[352133156,1738956694230,-500.0,0.00017806,2]
[352133157,1738956694239,-500.0,0.00017806,2]
[352133158,1738956694249,-500.0,0.00017806,2]
[352133159,1738956694258,-500.0,0.00017806,2]
[352133160,1738956694268,-1695.7,0.00017806,2]
[352133161,1738956694278,-3966.69,0.00017806,2]
[352133162,1738956694288,-662.29,0.00017806,2]
[352133163,1738956694297,-1062.51,0.00017807,2]
[352133164,1738956694308,-1219.59,0.00017807,2]
[352133165,1738956694318,-857.35,0.00017807,2]
[352133166,1738956694328,-526.56,0.00017807,2]
[352133167,1738956694338,-500.0,0.00017807,2]
[352133168,1738956694347,-547.58,0.00017807,2]
[352133169,1738956694357,-500.0,0.00017807,2]
[352133170,1738956694366,-500.0,0.00017807,2]
[352133171,1738956694376,-1136.81,0.00017807,2]
[352133172,1738956694387,-533.79,0.00017807,2]
[352133173,1738956694397,-500.0,0.00017807,2]
[352133174,1738956694406,-500.0,0.00017807,2]
[352133175,1738956694416,-1186.33,0.00017807,2]
[352133176,1738956694425,-500.0,0.00017807,2]
[352133177,1738956694435,-529.03,0.00017807,2]
[352133178,1738956694444,-1230.22,0.00017807,2]
[352133179,1738956694453,-500.0,0.00017807,2]
[352133180,1738956694462,-1245.85,0.00017807,2]
[352133181,1738956694472,-500.0,0.00017807,2]
[352133182,1738956694482,-1446.41,0.00017807,2]
[352133183,1738956694492,-565.43,0.00017807,2]
[352133184,1738956694501,-564.24,0.00017807,2]
[352133185,1738956694511,-500.0,0.00017807,2]
[352133186,1738956694521,-550.96,0.00017807,2]
[352133187,1738956694531,-1579.64,0.00017807,2]
[352133188,1738956694541,-520.2,0.00017807,2]
[352133189,1738956694551,-1605.34,0.00017807,2]
[352133190,1738956694560,-1579.05,0.00017807,2]
[352133191,1738956694571,-551.37,0.00017807,2]
[352133192,1738956694582,-601.14,0.00017807,2]
[352133193,1738956694591,-1184.1,0.00017807,2]
[352133194,1738956694601,-678.58,0.00017807,2]
[352133195,1738956694611,-515.45,0.00017807,2]
[352133196,1738956694620,-521.99,0.00017807,2]
[352133197,1738956694631,-552.13,0.00017807,2]
[352133198,1738956694641,-552.13,0.00017807,2]
[352133199,1738956694651,-552.13,0.00017807,2]
[352133200,1738956694661,-552.13,0.00017807,2]
[352133201,1738956694671,-552.13060542,0.00017807,2]
[352133202,1738956694680,-2651.33,0.00017807,2]
[352133203,1738956694690,-615.95,0.00017807,2]
[352133204,1738956694700,-500.0,0.00017807,2]
[352133205,1738956694709,-280.503188,0.00017808,2]
[352133206,1738956694718,-280.503188,0.00017808,2]
[352133207,1738956694728,-500.0,0.00017808,2]
[352133208,1738956694738,-500.0,0.00017808,2]
[352133209,1738956694747,-659.78,0.00017808,2]
[352133210,1738956694756,-500.0,0.00017808,2]
[352133211,1738956694900,-500.0,0.00017808,2]
[352133212,1738956694925,-500.0,0.00017808,2]
[352133213,1738956694935,-500.0,0.00017808,2]
[352133214,1738956694944,-500.0,0.00017808,2]
[352133215,1738956694954,-500.0,0.00017808,2]
[352133216,1738956694963,-500.0,0.00017808,2]
[352133217,1738956694972,-513.84,0.00017808,2]
[352133218,1738956694981,-1712.36,0.00017808,2]
[352133219,1738956694991,-1938.63,0.00017808,2]
[352133220,1738956695000,-1697.97,0.00017808,2]
[352133221,1738956695010,-500.0,0.00017808,2]
[352133222,1738956695019,-1225.54,0.00017808,2]
[352133223,1738956695028,-500.0,0.00017808,2]
[352133224,1738956695038,-676.85,0.00017808,2]
[352133225,1738956695048,-500.0,0.00017808,2]
[352133226,1738956695058,-1685.31,0.00017808,60]
[352133227,1738956695067,-541.77,0.00017808,2]
[352133228,1738956695076,-667.78,0.00017808,2]
[352133229,1738956695085,-573.49,0.00017808,2]
[352133230,1738956695095,-1308.11,0.00017808,2]
[352133231,1738956695105,-1722.81,0.00017808,2]
[352133232,1738956695114,-500.0,0.00017808,2]
[352133233,1738956695123,-925.93,0.00017808,2]
[352133234,1738956695133,-1095.49,0.00017808,2]
[352133235,1738956695142,-500.0,0.00017808,2]
[352133236,1738956695152,-649.37,0.00017808,2]
[352133237,1738956695161,-776.83,0.00017808,2]
[352133238,1738956695171,-1010.35,0.00017808,2]
[352133239,1738956695180,-1263.77,0.00017808,2]
[352133240,1738956695189,-500.0,0.00017808,2]
[352133241,1738956695200,-537.33572341,0.00017808,2]
[352133242,1738956695211,-1637.13,0.00017808,2]
[352133243,1738956695220,-694.17,0.00017808,2]
[352133244,1738956695229,-500.0,0.00017808,2]
[352133245,1738956695238,-730.01,0.00017808,2]
[352133246,1738956695248,-500.0,0.00017808,2]
[352133247,1738956695257,-1444.08,0.00017808,2]
[352133248,1738956695268,-500.0,0.00017808,2]
[352133249,1738956695278,-500.0,0.00017808,2]
[352133250,1738956695289,-500.0,0.00017808,2]
[352133251,1738956695298,-712.73,0.00017808,2]
[352133252,1738956695309,-500.0,0.00017808,2]
[352133253,1738956695319,-1000.0,0.00017808,4]
[352133254,1738956695330,-500.0,0.00017808,2]
[352133255,1738956695339,-500.0,0.00017808,2]
[352133256,1738956695349,-500.0,0.00017808,2]
[352133257,1738956695359,-500.0,0.00017808,2]
[352133258,1738956695369,-500.0,0.00017808,2]
[352133259,1738956695378,-1676.26,0.00017808,2]
[352133260,1738956695388,-500.0,0.00017808,2]
[352133261,1738956695397,-500.0,0.00017808,2]
[352133262,1738956695407,-500.0,0.00017808,2]
[352133263,1738956695416,-500.0,0.00017808,2]
[352133264,1738956695425,-500.0,0.00017808,2]
[352133265,1738956695435,-1138.99,0.00017808,2]
[352133266,1738956695445,-500.0,0.00017808,2]
[352133267,1738956695454,-500.0,0.00017808,2]
[352133268,1738956695463,-500.0,0.00017808,2]
[352133269,1738956695472,-500.0,0.00017808,2]
[352133270,1738956695482,-1316.0,0.00017808,2]
[352133271,1738956695492,-725.14,0.00017808,2]
[352133272,1738956695501,-1188.45,0.00017808,2]
[352133273,1738956695510,-516.4,0.00017808,2]
[352133274,1738956695519,-510.03,0.00017808,2]
[352133275,1738956695529,-500.0,0.00017808,2]
[352133276,1738956695539,-1472.92,0.00017808,2]
[352133277,1738956695548,-1412.12,0.00017808,2]
[352133278,1738956695561,-500.0,0.00017808,2]
[352133279,1738956695571,-529.81,0.00017808,2]
[352133280,1738956695581,-981.75,0.00017808,2]
[352133281,1738956695591,-520.02,0.00017808,2]
[352133282,1738956695600,-647.02,0.00017808,2]
[352133283,1738956695610,-1033.68,0.00017808,2]
[352133284,1738956695619,-522.48,0.00017808,2]
[352133285,1738956695629,-500.0,0.00017808,2]
[352133286,1738956695638,-662.32,0.00017808,2]
[352133287,1738956695648,-1353.23,0.00017808,2]
[352133288,1738956695659,-508.39,0.00017808,2]
[352133289,1738956695669,-1634.27,0.00017808,2]
[352133290,1738956695678,-500.0,0.00017808,2]
[352133291,1738956695688,-544.73,0.00017808,2]
[352133292,1738956695697,-529.48,0.00017808,2]
[352133293,1738956695707,-500.0,0.00017808,2]
[352133294,1738956695716,-939.05,0.00017808,2]
[352133295,1738956695726,-1428.68,0.00017808,2]
[352133296,1738956695735,-500.0,0.00017808,2]
[352133297,1738956695745,-690.69,0.00017808,2]
[352133298,1738956695756,-1130.37,0.00017808,2]
[352133299,1738956695766,-500.0,0.00017808,2]
[352133300,1738956695776,-1381.35,0.00017808,2]
[352133301,1738956695786,-580.24,0.00017808,2]
[352133302,1738956695796,-1489.45,0.00017808,2]
[352133303,1738956695805,-500.0,0.00017808,2]
[352133304,1738956695815,-1435.35,0.00017808,2]
[352133305,1738956695824,-500.0,0.00017808,2]
[352133306,1738956695834,-1168.21,0.00017808,2]
[352133307,1738956695844,-3966.24,0.00017808,2]
[352133308,1738956695853,-648.0,0.00017808,2]
[352133309,1738956695862,-1165.23,0.00017808,2]
[352133310,1738956695872,-500.0,0.00017808,2]
[352133311,1738956695881,-2615.59,0.00017808,2]
[352133312,1738956695891,-830.58,0.00017808,2]
[352133313,1738956695901,-2112.58,0.00017808,2]
[352133314,1738956695911,-1540.26,0.00017808,2]
[352133315,1738956695920,-1387.93,0.00017808,2]
[352133316,1738956695930,-1751.47,0.00017808,2]
[352133317,1738956695940,-2850.19,0.00017808,2]
[352133318,1738956695952,-603.96,0.00017808,2]
[352133319,1738956695961,-500.0,0.00017808,2]
[352133320,1738956695971,-2172.91,0.00017808,2]
[352133321,1738956695981,-1670.17,0.00017808,2]
[352133322,1738956695991,-500.0,0.00017808,2]
[352133323,1738956696000,-1335.8,0.00017808,2]
[352133324,1738956696009,-1813.96,0.00017808,2]
[352133325,1738956696019,-500.0,0.00017808,2]
[352133326,1738956696029,-1815.88,0.00017808,2]
[352133327,1738956696038,-1078.85,0.00017808,2]
[352133328,1738956696048,-500.0,0.00017808,2]
[352133329,1738956696059,-650.97,0.00017808,2]
[352133330,1738956696069,-1933.83,0.00017808,2]
[352133331,1738956696078,-1477.72,0.00017808,2]
[352133332,1738956696087,-520.8,0.00017808,2]
[352133333,1738956696097,-1313.81,0.00017808,2]
[352133334,1738956696107,-618.23,0.00017808,2]
[352133335,1738956696117,-500.0,0.00017808,2]
[352133336,1738956696127,-2982.88,0.00017808,2]
[352133337,1738956696136,-500.0,0.00017808,2]
[352133338,1738956696146,-500.0,0.00017808,2]
[352133339,1738956696156,-523.72,0.00017808,2]
[352133340,1738956696165,-1656.24,0.00017808,2]
[352133341,1738956696175,-3275.06,0.00017808,2]
[352133342,1738956696185,-1882.91,0.00017808,2]
[352133343,1738956696195,-972.36,0.00017808,2]
[352133344,1738956696205,-1686.85,0.00017808,2]
[352133345,1738956696215,-993.82,0.00017808,2]
[352133346,1738956696224,-2377.09,0.00017808,2]
[352133347,1738956696234,-1338.75,0.00017808,2]
[352133348,1738956696244,-1209.72,0.00017808,2]
[352133349,1738956696254,-3708.92,0.00017808,2]
[352133350,1738956696263,-2135.6,0.00017808,2]
[352133351,1738956696272,-2799.93,0.00017808,2]
[352133352,1738956696281,-2642.08,0.00017808,2]
[352133353,1738956696292,-928.35,0.00017808,2]
[352133354,1738956696303,-2130.68,0.00017808,2]
[352133355,1738956696312,-2968.87,0.00017808,2]
[352133356,1738956696322,-500.0,0.00017808,2]
[352133357,1738956696332,-908.973936,0.00017808,2]
[352133358,1738956696342,-4265.56,0.00017808,2]
[352133359,1738956696352,-1264.49,0.00017808,2]
[352133360,1738956696362,-2756.51,0.00017808,2]
[352133361,1738956696371,-1952.36,0.00017808,2]
[352133362,1738956696381,-908.973936,0.00017808,2]
[352133363,1738956696390,-396.59,0.00017808,2]
[352133364,1738956696400,-2675.04,0.00017808,2]
[352133365,1738956696410,-1643.06,0.00017808,2]
[352133366,1738956696420,-2535.68,0.00017808,2]
[352133367,1738956696430,-2559.02,0.00017808,2]
[352133368,1738956696439,-982.62,0.00017808,2]
[352133369,1738956696450,-1048.24,0.00017808,2]
[352133370,1738956696460,-652.99,0.00017808,2]
[352133371,1738956696470,-3904.04,0.00017808,2]
[352133372,1738956696480,-1687.81,0.00017808,2]
[352133373,1738956696489,-1846.01,0.00017808,2]
[352133374,1738956696498,-8054.78,0.00017808,2]
[352133375,1738956696508,-2697.16,0.00017808,2]
[352133376,1738956696518,-1537.43,0.00017808,2]
[352133377,1738956696527,-4171.0,0.00017808,2]
[352133378,1738956696536,-500.0,0.00017808,2]
[352133379,1738956696546,-4545.2,0.00017808,2]
[352133380,1738956696557,-871.03,0.00017808,2]
[352133381,1738956696567,-1100.92,0.00017808,2]
[352133382,1738956696579,-4717.88,0.00017808,2]
[352133383,1738956696591,-1186.63,0.00017808,2]
[352133384,1738956696600,-778.34,0.00017808,2]
[352133385,1738956696610,-500.0,0.00017808,2]
[352133386,1738956696619,-6146.82,0.00017808,2]
[352133387,1738956696630,-1352.28,0.00017808,2]
[352133388,1738956696639,-2922.19,0.00017808,2]
[352133389,1738956696648,-500.0,0.00017808,2]
[352133390,1738956696658,-823.38,0.00017808,2]
[352133391,1738956696669,-2029.74,0.00017808,2]
[352133392,1738956696680,-500.0,0.00017808,2]
[352133393,1738956696689,-500.0,0.00017808,2]
[352133394,1738956696699,-4297.56,0.00017808,2]
[352133395,1738956696709,-4260.15,0.00017808,2]
[352133396,1738956696719,-1150.5,0.00017808,2]
[352133397,1738956696729,-4984.09,0.00017808,2]
[352133398,1738956696739,-4214.42,0.00017808,2]
[352133399,1738956696750,-1455.84,0.00017808,2]
[352133400,1738956696760,-1559.73,0.00017808,2]
[352133401,1738956696771,-1241.92,0.00017808,2]
[352133402,1738956696781,-2692.24,0.00017808,2]
[352133403,1738956696791,-500.0,0.00017808,2]
[352133404,1738956696803,-630.57,0.00017808,2]
[352133405,1738956696812,-1067.17,0.00017808,2]
[352133406,1738956696822,-881.73,0.00017808,2]
[352133407,1738956696831,-3307.35,0.00017808,2]
[352133408,1738956696841,-2646.43,0.00017808,2]
[352133409,1738956696851,-500.0,0.00017808,2]
[352133410,1738956696861,-742.64,0.00017808,2]
[352133411,1738956696871,-3381.29,0.00017808,2]
[352133412,1738956696880,-548.98,0.00017808,2]
[352133413,1738956696889,-797.92,0.00017808,2]
[352133414,1738956696899,-3042.11,0.00017808,2]
[352133415,1738956696909,-553.95,0.00017808,2]
[352133416,1738956696919,-527.06,0.00017808,2]
[352133417,1738956696928,-500.0,0.00017808,2]
[352133418,1738956696938,-1555.24,0.00017808,2]
[352133419,1738956696947,-3666.13,0.00017808,2]
[352133420,1738956696957,-1049.9,0.00017808,2]
[352133421,1738956696967,-1290.42600194,0.00017833,2]
[352133422,1738956696976,-1290.42600194,0.000179,2]
[352133423,1738956696985,-500.27,0.00017943,2]
[352133424,1738956696995,-500.0,0.00017943,2]
[352133425,1738956697004,-500.0,0.00017943,2]
[352133426,1738956697014,-500.0,0.00017943,2]
[352133427,1738956697023,-500.0,0.00017943,2]
[352133428,1738956697032,-500.0,0.00017943,2]
[352133429,1738956697041,-500.0,0.00017943,2]
[352133430,1738956697051,-500.0,0.00017943,2]
[352133431,1738956697062,-500.0,0.00017943,2]
[352133432,1738956697071,-500.0,0.00017943,2]
[352133433,1738956697081,-500.0,0.00017943,2]
[352133434,1738956697090,-507.19676179,0.00017943,2]
[352133435,1738956697100,-500.0,0.00017943,2]
[352133436,1738956697109,-500.0,0.00017943,2]
[352133437,1738956697119,-500.0,0.00017943,2]
[352133438,1738956697129,-500.0,0.00017943,2]
[352133439,1738956697139,-363.56,0.00017943,2]
[352133440,1738956697149,-540.67,0.00017943,2]
[352133441,1738956697159,-557.1,0.00017943,2]
[352133442,1738956697168,-500.0,0.00017943,2]
[352133443,1738956697177,-500.0,0.00017943,2]
[352133444,1738956697186,-500.0,0.00017943,2]
[352133445,1738956697196,-500.0,0.00017943,2]
[352133446,1738956697205,-530.71,0.00017943,2]
[352133447,1738956697214,-2942.64,0.00017943,2]
[352133448,1738956697223,-1743.62,0.00017943,2]
[352133449,1738956697233,-720.06,0.00017943,2]
[352133450,1738956697243,-5046.81,0.00017943,2]
[352133451,1738956697253,-218.34476471,0.00017943,2]
[352133452,1738956697262,-430.3402488,0.00017943,2]
[352133453,1738956697272,-416.31958756,0.00017943,2]
[352133454,1738956697281,-1994.07,0.00017943,2]
[352133455,1738956697291,-1138.25,0.00017943,2]
[352133456,1738956697301,-500.0,0.00017943,2]
[352133457,1738956697311,-3516.18,0.00017943,2]
[352133458,1738956697321,-500.0,0.00017943,2]
[352133459,1738956697331,-500.0,0.00017943,2]
[352133460,1738956697341,-500.0,0.00017943,2]
[352133461,1738956697351,-1024.51,0.00017943,2]
[352133462,1738956697361,-2173.49,0.00017943,2]
[352133463,1738956697371,-612.99,0.00017943,2]
[352133464,1738956697381,-1229.36,0.00017943,2]
[352133465,1738956697392,-2227.07,0.00017943,2]
[352133466,1738956697402,-2301.73,0.00017943,2]
[352133467,1738956697412,-1183.89,0.00017943,2]
[352133468,1738956697421,-518.71,0.00017943,2]
[352133469,1738956697431,-2133.71,0.00017943,2]
[352133470,1738956697440,-500.0,0.00017943,2]
[352133471,1738956697450,-2304.96,0.00017943,2]
[352133472,1738956697460,-4101.49,0.00017943,2]
[352133473,1738956697469,-629.73,0.00017943,2]
[352133474,1738956697479,-10904.08,0.00017943,2]
[352133475,1738956697488,-1990.52,0.00017943,2]
[352133476,1738956697498,-1994.74,0.00017943,2]
[352133477,1738956697508,-500.0,0.00017943,2]
[352133478,1738956697518,-2018.74,0.00017943,2]
[352133479,1738956697528,-500.0,0.00017943,2]
[352133480,1738956697539,-500.0,0.00017943,2]
[352133481,1738956697548,-500.0,0.00017943,2]
[352133482,1738956697558,-500.0,0.00017943,2]
[352133483,1738956697568,-1695.7,0.00017943,2]
[352133484,1738956697582,-3966.69,0.00017943,2]
[352133485,1738956697591,-662.29,0.00017943,2]
[352133486,1738956697600,-1062.51,0.00017944,2]
[352133487,1738956697610,-1219.59,0.00017944,2]
[352133488,1738956697621,-857.35,0.00017944,2]
[352133489,1738956697630,-526.56,0.00017944,2]
[352133490,1738956697640,-500.0,0.00017944,2]
[352133491,1738956697650,-547.58,0.00017944,2]
[352133492,1738956697661,-500.0,0.00017944,2]
[352133493,1738956697671,-500.0,0.00017944,2]
[352133494,1738956697680,-1136.81,0.00017944,2]
[352133495,1738956697689,-533.79,0.00017944,2]
[352133496,1738956697699,-500.0,0.00017944,2]
[352133497,1738956697708,-500.0,0.00017944,2]
[352133498,1738956697718,-1186.33,0.00017944,2]
[352133499,1738956697727,-500.0,0.00017944,2]
[352133500,1738956697737,-529.03,0.00017944,2]
[352133501,1738956697747,-1230.22,0.00017944,2]
[352133502,1738956697756,-500.0,0.00017944,2]
[352133503,1738956697766,-1245.85,0.00017944,2]
[352133504,1738956697775,-500.0,0.00017944,2]
[352133505,1738956697785,-1446.41,0.00017944,2]
[352133506,1738956697794,-565.43,0.00017944,2]
[352133507,1738956697804,-564.24,0.00017944,2]
[352133508,1738956697814,-500.0,0.00017944,2]
[352133509,1738956697824,-550.96,0.00017944,2]
[352133510,1738956697833,-1579.64,0.00017944,2]
[352133511,1738956697843,-520.2,0.00017944,2]
[352133512,1738956697853,-1605.34,0.00017944,2]
[352133513,1738956697862,-1579.05,0.00017944,2]
[352133514,1738956697872,-551.37,0.00017944,2]
[352133515,1738956697882,-601.14,0.00017944,2]
[352133516,1738956697892,-1184.1,0.00017944,2]
[352133517,1738956697902,-678.58,0.00017944,2]
[352133518,1738956697913,-515.45,0.00017944,2]
[352133519,1738956697923,-521.99,0.00017944,2]
[352133520,1738956697933,-2651.33,0.00017944,2]
[352133521,1738956697943,-615.95,0.00017944,2]
[352133522,1738956697953,-500.0,0.00017944,2]
[352133523,1738956697962,-151.0,0.00017945,2]
[352133524,1738956697972,-151.0,0.00017945,2]
[352133525,1738956697982,-258.071323,0.00017945,2]
[352133526,1738956697991,-151.0,0.00017945,2]
[352133527,1738956698002,-151.0,0.00017945,2]
[352133528,1738956698011,-151.0,0.00017945,2]
[352133529,1738956698020,-151.0,0.00017945,2]
[352133530,1738956698029,-151.0,0.00017945,2]
[352133531,1738956698039,-151.0,0.00017945,2]
[352133532,1738956698048,-151.0,0.00017945,2]
[352133533,1738956698058,-151.0,0.00017945,2]
[352133534,1738956698066,-151.0,0.00017945,2]
[352133535,1738956698075,-151.0,0.00017945,2]
[352133536,1738956698085,-151.0,0.00017945,2]
[352133537,1738956698094,-151.0,0.00017945,2]
[352133538,1738956698104,-151.0,0.00017945,2]
[352133539,1738956698114,-151.0,0.00017945,2]
[352133540,1738956698123,-151.0,0.00017945,2]
[352133541,1738956698133,-151.0,0.00017945,2]
[352133542,1738956698142,-151.0,0.00017945,2]
[352133543,1738956698152,-151.0,0.00017945,2]
[352133544,1738956698161,-151.0,0.00017945,2]
[352133545,1738956698170,-151.0,0.00017945,2]
[352133546,1738956698179,-151.0,0.00017945,2]
[352133547,1738956698188,-151.0,0.00017945,2]
[352133548,1738956698197,-151.0,0.00017945,2]
[352133549,1738956698206,-151.0,0.00017945,2]
[352133550,1738956698215,-151.0,0.00017945,2]
[352133551,1738956698224,-151.0,0.00017945,2]
[352133552,1738956698234,-151.0,0.00017945,2]
[352133553,1738956698244,-151.0,0.00017945,2]
[352133554,1738956698255,-151.0,0.00017945,2]
[352133555,1738956698264,-151.0,0.00017945,2]
[352133556,1738956698274,-151.0,0.00017945,2]
[352133557,1738956698283,-151.0,0.00017945,2]
[352133558,1738956698292,-151.0,0.00017945,2]
[352133559,1738956698302,-151.0,0.00017945,2]
[352133560,1738956698312,-151.0,0.00017945,2]
[352133561,1738956698322,-151.0,0.00017945,2]
[352133562,1738956698331,-151.0,0.00017945,2]
[352133563,1738956698341,-151.0,0.00017945,2]
[352133564,1738956698350,-151.0,0.00017945,2]
[352133565,1738956698359,-151.0,0.00017945,2]
[352133566,1738956698368,-151.0,0.00017945,2]
[352133567,1738956698377,-151.0,0.00017945,2]
[352133568,1738956698386,-151.0,0.00017945,2]
[352133569,1738956698396,-151.0,0.00017945,2]
[352133570,1738956698405,-151.0,0.00017945,2]
[352133571,1738956698414,-151.0,0.00017945,2]
[352133572,1738956698424,-151.0,0.00017945,2]
[352133573,1738956698433,-151.0,0.00017945,2]
[352133574,1738956698443,-151.0,0.00017945,2]
[352133575,1738956698452,-151.0,0.00017945,2]
[352133576,1738956698462,-151.0,0.00017945,2]
[352133577,1738956698471,-151.0,0.00017945,2]
[352133578,1738956698481,-151.0,0.00017945,2]
[352133579,1738956698489,-151.0,0.00017945,2]
[352133580,1738956698499,-151.0,0.00017945,2]
[352133581,1738956698508,-151.0,0.00017945,2]
[352133582,1738956698517,-151.0,0.00017945,2]
[352133583,1738956698527,-151.0,0.00017945,2]
[352133584,1738956698536,-151.0,0.00017945,2]
[352133585,1738956698545,-151.0,0.00017945,2]
[352133586,1738956698554,-151.0,0.00017945,2]
[352133587,1738956698564,-151.0,0.00017945,2]
[352133588,1738956698574,-151.0,0.00017945,2]
[352133589,1738956698590,-151.0,0.00017945,2]
[352133590,1738956698599,-151.0,0.00017945,2]
[352133591,1738956698608,-151.0,0.00017945,2]
[352133592,1738956698619,-151.0,0.00017945,2]
[352133593,1738956698628,-151.0,0.00017945,2]
[352133594,1738956698637,-151.0,0.00017945,2]
[352133595,1738956698646,-151.0,0.00017945,2]
[352133596,1738956698656,-151.0,0.00017945,2]
[352133597,1738956698666,-151.0,0.00017945,2]
[352133598,1738956698676,-151.0,0.00017945,2]
[352133599,1738956698685,-151.0,0.00017945,2]
[352133600,1738956698694,-151.0,0.00017945,2]
[352133601,1738956698703,-151.0,0.00017945,2]
[352133602,1738956698711,-151.0,0.00017945,2]
[352133603,1738956698721,-151.0,0.00017945,2]
[352133604,1738956698730,-151.0,0.00017945,2]
[352133605,1738956698739,-151.0,0.00017945,2]
[352133606,1738956698748,-151.0,0.00017945,2]
[352133607,1738956698757,-246.137348,0.00017945,2]
[352133608,1738956698766,-895.248672,0.00017945,2]
[352133609,1738956698775,-895.248672,0.00017945,2]
[352133610,1738956698784,-151.0,0.00017945,2]
[352133611,1738956698793,-151.0,0.00017945,2]
[352133612,1738956698802,-151.0,0.00017945,2]
[352133613,1738956698811,-151.0,0.00017945,2]
[352133614,1738956698821,-500.0,0.00017945,2]
[352133615,1738956698830,-500.0,0.00017945,2]
[352133616,1738956698839,-659.78,0.00017945,2]
[352133617,1738956698848,-500.0,0.00017945,2]
[352133618,1738956698857,-500.0,0.00017945,2]
[352133619,1738956698867,-500.0,0.00017945,2]
[352133620,1738956698876,-500.0,0.00017945,2]
[352133621,1738956698885,-500.0,0.00017945,2]
[352133622,1738956698894,-448.40904966,0.00017945,2]
[352133623,1738956698903,-500.0,0.00017945,2]